{"text_format":"1","workbook":"xlsx","n_sheets":4,"sheets":["Accueil","Questions","Questionnaire","Feuilles de marque"],"not_rendered":{"charts":0,"images":1,"macros":1,"external_links":0,"defined_names":0,"comments":0,"pivot_tables":0},"unopened":[],"bounds":{"document_bytes":16777216,"sheet_cells":100000,"rows_first":2000,"rows_last":500,"rows_between":2000,"halvings":0,"cell_chars":16384,"cell_head_chars":4096},"cells_cut":0,"cells_raw":0,"read":"whole","date_system":"1900"}

{"sheet":"Accueil","index":0,"n_rows":0,"n_cols":0,"rows_kept":0,"cut":false,"hidden":false,"merged":[]}

{"sheet":"Questions","index":1,"n_rows":53,"n_cols":9,"rows_kept":53,"cut":false,"hidden":false,"merged":[[0,1,0,5]]}
[null," ",null,null,null,null,"Indiquer le                  n° de la réponse\n (1 - 2 ou 3)",null,"NOTE (1 ou 0)"]
[{"$f":"RAND()","v":0.84759589793405488},17,"En bateau, la mise à l’épuisette du poisson doit être effectuée uniquement par le concurrent.",true,false,null,null,{"$f":"IF(G2=2,1,0)","v":0},{"$f":"H2","v":0}]
[{"$f":"RAND()","v":0.47459081824092186},26,"Quel est le nombre maximum de nœuds autorisés sur un micro anneaux ?",2,3,null,null,{"$f":"IF(G3=2,1,0)","v":0},{"$f":"H3","v":0}]
[{"$f":"RAND()","v":0.59478364888432189},3,"Le compétiteur peut toucher son poisson dans l'épuisette avant l'homologation.",true,false,null,null,{"$f":"IF(G4=2,1,0)","v":0},{"$f":"H4","v":0}]
[{"$f":"RAND()","v":0.58831260964157195},10,"Pendant les inter-manches, je peux aider un compétiteur à déplacer son matériel. ",true,false,null,null,{"$f":"IF(G5=2,1,0)","v":0},{"$f":"H5","v":0}]
[{"$f":"RAND()","v":0.58062905936185694},43,"En rivière, sous certaines conditions, les truites arc en ciel sont homologables.",true,false,null,null,{"$f":"IF(G6=1,1,0)","v":0},{"$f":"H6","v":0}]
[{"$f":"RAND()","v":0.708115918499573},31,"Dans certains cas, le commissaire peut, seul, interdire l'emploi de certains équipements et/ou mouches.",true,false,null,null,{"$f":"IF(G7=2,1,0)","v":0},{"$f":"H7","v":0}]
[{"$f":"RAND()","v":0.36936980894165994},5,"En cas de pêche en barque dérivante, la zone de pêche de chaque concurrent est de ?","45 °","90 °","180 °",null,{"$f":"IF(G8=2,1,0)","v":0},{"$f":"H8","v":0}]
[{"$f":"RAND()","v":0.81925173876370239},45,"La gabarit sert à mesurer uniquement la taille de la bille et la longueur maximale de l'hameçon.",true,false,null,null,{"$f":"IF(G9=2,1,0)","v":0},{"$f":"H9","v":0}]
[{"$f":"RAND()","v":0.59534219921439013},8,"Le contrôleur peut contrôler un membre de son club.",true,false,null,null,{"$f":"IF(G10=2,1,0)","v":0},{"$f":"H10","v":0}]
[{"$f":"RAND()","v":0.3801141547300827},36,"Le commissaire doit signaler un abandon de poste.",true,false,null,null,{"$f":"IF(G11=1,1,0)","v":0},{"$f":"H11","v":0}]
[{"$f":"RAND()","v":2.7001485220435995E-2},42,"En réservoir, l'entraînement des compétiteurs et contrôleurs de toutes divisions confondues, sur les secteurs de la compétition, est interdit 15 jours francs précédents la compétition.",true,false,null,null,{"$f":"IF(G12=2,1,0)","v":0},{"$f":"H12","v":0}]
[{"$f":"RAND()","v":0.49313184776581875},35,"En réservoir, que ce soit du bord ou en barque fixe, la longueur totale des épuisettes entièrement déployées est limitée. ",true,false,null,null,{"$f":"IF(G13=2,1,0)","v":0},{"$f":"H13","v":0}]
[{"$f":"RAND()","v":0.53124027737152524},50,"La remise à l'eau du poisson peut être effectuée indifféremment par le contrôleur ou le pêcheur.",true,false,null,null,{"$f":"IF(G14=2,1,0)","v":0},{"$f":"H14","v":0}]
[{"$f":"RAND()","v":0.16131369577041021},33,"Toutes les papattes sont interdites.",true,false,null,null,{"$f":"IF(G15=1,1,0)","v":0},{"$f":"H15","v":0}]
[{"$f":"RAND()","v":0.78564389947121616},38,"En compétition rivière, l’arbitre peut traverser le cours d’eau pour mesurer un poisson.",true,false,null,null,{"$f":"IF(G16=2,1,0)","v":0},{"$f":"H16","v":0}]
[{"$f":"RAND()","v":0.75954747154054214},18,"Le concurrent signe en regard de chaque prise en fin de chaque session.",true,false,null,null,{"$f":"IF(G17=2,1,0)","v":0},{"$f":"H17","v":0}]
[{"$f":"RAND()","v":9.915760924674244E-2},27,"Le lestage d'une mouche peut dépasser de la courbure.",true,false,null,null,{"$f":"IF(G18=2,1,0)","v":0},{"$f":"H18","v":0}]
[{"$f":"RAND()","v":0.2875851255106886},7,"Quelle la longueur maximum d'une canne en compétition ?","10 pieds","11 pieds","12 pieds",null,{"$f":"IF(G19=3,1,0)","v":0},{"$f":"H19","v":0}]
[{"$f":"RAND()","v":0.76619769053028386},9,"Pendant une manche, je ne peux pas aider un compétiteur à déplacer son matériel. ",true,false,null,null,{"$f":"IF(G20=1,1,0)","v":0},{"$f":"H20","v":0}]
[{"$f":"RAND()","v":0.39866346178151235},13,"Sur un bas de ligne à nœuds pendant librement, quelle est la distance minimale entre 2 nœuds ? ","30 cm","35 cm","40 cm",null,{"$f":"IF(G21=1,1,0)","v":0},{"$f":"H21","v":0}]
[{"$f":"RAND()","v":0.7142737995611107},28,"Si on emploie plus d’une mouche coulante sur un bas de ligne, quel est le diamètre maximum de la ou des billes utilisée(s) pour lester la/les mouche(s) ?","3,5 mm","3,8 mm","4 mm",null,{"$f":"IF(G22=3,1,0)","v":0},{"$f":"H22","v":0}]
[{"$f":"RAND()","v":0.4528903547228893},37,"En rivière un poisson est accroché dans son lot et passe dans le lot de pêche adjacent, de combien de temps dispose le pêcheur pour l'épuiser dans son propre lot ?","3 mn","5 mn","10 mn",null,{"$f":"IF(G23=2,1,0)","v":0},{"$f":"H23","v":0}]
[{"$f":"RAND()","v":0.98887698842044758},20,"Pour être homologuée, chaque prise sera annoncée, au plus tard, au moment de la mise à l'épuisette.",true,false,null,null,{"$f":"IF(G24=2,1,0)","v":0},{"$f":"H24","v":0}]
[{"$f":"RAND()","v":0.82255218797415097},1,"En PN, D2, D1, quelle est la taille minimum d'une truite pour être homologuée ?",23,20,null,null,{"$f":"IF(G25=2,1,0)","v":0},{"$f":"H25","v":0}]
[{"$f":"RAND()","v":0.61063586513780488},6,"Si le temps entre deux rotations le permet, de combien de temps dispose un compétiteur pour épuiser un poisson pris en fin de rotation ?","15 mn","5 mn","10 mn",null,{"$f":"IF(G26=3,1,0)","v":0},{"$f":"H26","v":0}]
[{"$f":"RAND()","v":0.52848636886386247},22,"Un poisson tué involontairement par un concurrent est homologuable.",true,false,null,null,{"$f":"IF(G27=2,1,0)","v":0},{"$f":"H27","v":0}]
[{"$f":"RAND()","v":0.34379092881023998},11,"En bateau, je peux pêcher :","ASSIS","DEBOUT","LES DEUX",null,{"$f":"IF(G28=1,1,0)","v":0},{"$f":"H28","v":0}]
[{"$f":"RAND()","v":2.4695405161949568E-2},32,"Si le commissaire estime une mouche non conforme, il doit garder la mouche pour présentation au comité d’organisation. ",true,false,null,null,{"$f":"IF(G29=1,1,0)","v":0},{"$f":"H29","v":0}]
[{"$f":"RAND()","v":0.54820395111331388},4,"Après chaque validation et inscription d'une prise le compétiteur doit obligatoirement signer la feuille de marque.",true,false,null,null,{"$f":"IF(G30=1,1,0)","v":0},{"$f":"H30","v":0}]
[{"$f":"RAND()","v":0.71080745442693716},2,"En PN, D2, D1, quelle est la taille minimum d'un ombre pour être homologué ?","27 cm","23 cm",null,null,{"$f":"IF(G31=1,1,0)","v":0},{"$f":"H31","v":0}]
[{"$f":"RAND()","v":0.14521412032263781},23,"Une seule boucle est autorisée en fin de soie pour connecter le bas de ligne. Si un tissé ou un nylon muni d’une boucle est utilisé pour cette connexion, la longueur totale de ce dispositif ne devra pas excéder 10 cm.",true,false,null,null,{"$f":"IF(G32=1,1,0)","v":0},{"$f":"H32","v":0}]
[{"$f":"RAND()","v":0.97189933245452154},39,"Quelle est la longueur maximum autorisée du bas de ligne, pointe comprise ?","1,5 fois la canne","2 fois la canne","2,5 fois la canne",null,{"$f":"IF(G33=2,1,0)","v":0},{"$f":"H33","v":0}]
[{"$f":"RAND()","v":3.6814992876778585E-2},14,"Sur un bas de ligne pendant librement, quelle est la distance minimum entre 2 mouches ? ","40 cm","50 cm","60 cm",null,{"$f":"IF(G34=2,1,0)","v":0},{"$f":"H34","v":0}]
[{"$f":"RAND()","v":0.1813760721378882},41,"Si le compétiteur le demande, je dois faire la mesure en dehors de l’épuisette.",true,false,null,null,{"$f":"IF(G35=1,1,0)","v":0},{"$f":"H35","v":0}]
[{"$f":"RAND()","v":0.3913183990757203},40,"Avec dérogation spécifique à un critérium, un saumon de 30,6 cm sera marqué à ?","30 cm","31 cm","Non homologable",null,{"$f":"IF(G36=3,1,0)","v":0},{"$f":"H36","v":0}]
[{"$f":"RAND()","v":0.14736108127428849},15,"Pendant la pêche, un compétiteur peut-il utiliser son téléphone portable ? ","OUI","NON",null,null,{"$f":"IF(G37=2,1,0)","v":0},{"$f":"H37","v":0}]
[{"$f":"RAND()","v":0.29259021480692393},24,"L’œillet d’une mouche peut être employé comme micro anneau.",true,false,null,null,{"$f":"IF(G38=1,1,0)","v":0},{"$f":"H38","v":0}]
[{"$f":"RAND()","v":0.93630370137409968},48,"A la fin de chaque manche, le commissaire devra rayer ou noircir les cases non remplies sur la fiche de contrôle.",true,false,null,null,{"$f":"IF(G39=1,1,0)","v":0},{"$f":"H39","v":0}]
[{"$f":"RAND()","v":0.15732221080339814},16,"En action de pêche, la distance minimum à respecter entre bateaux est de ?","50 m","60 m","70 m",null,{"$f":"IF(G40=1,1,0)","v":0},{"$f":"H40","v":0}]
[{"$f":"RAND()","v":4.6254930213505574E-2},25,"Sur le bas de ligne, le nombre maximum de micro anneaux autorisé est de ?",2,4,3,null,{"$f":"IF(G41=3,1,0)","v":0},{"$f":"H41","v":0}]
[{"$f":"RAND()","v":0.60360065540476682},47,"La longueur des soies utilisées peut être inférieure à 25 m.",true,false,null,null,{"$f":"IF(G42=1,1,0)","v":0},{"$f":"H42","v":0}]
[{"$f":"RAND()","v":0.3795202461271826},19,"En D1, D2 et PN, un concurrent peux solliciter ou recevoir un conseil pendant une manche.",true,false,null,null,{"$f":"IF(G43=2,1,0)","v":0},{"$f":"H43","v":0}]
[{"$f":"RAND()","v":0.6318574538874665},44,"Utilisée seule, une mouche lestée n’a aucune restriction (poids, taille, matériaux ...).",true,false,null,null,{"$f":"IF(G44=1,1,0)","v":0},{"$f":"H44","v":0}]
[{"$f":"RAND()","v":0.93356064876064193},30,"Les mouches articulées ou tandem sont autorisées.",true,false,null,null,{"$f":"IF(G45=2,1,0)","v":0},{"$f":"H45","v":0}]
[{"$f":"RAND()","v":0.2473607759859916},12,"Je viens de mesurer une truite de 31,6 cm. Je la note sur la feuille de marque pour :","31 cm","31,6 cm","32 cm",null,{"$f":"IF(G46=3,1,0)","v":0},{"$f":"H46","v":0}]
[{"$f":"RAND()","v":0.11975195375640801},21,"Les poissons piqués autrement qu’à l'intérieur de la bouche ou sur les lèvres, seront considérés harponnés et non homologués. ",true,false,null,null,{"$f":"IF(G47=1,1,0)","v":0},{"$f":"H47","v":0}]
[{"$f":"RAND()","v":0.16039184619827773},34,"En rivière, la longueur totale autorisée des épuisettes entièrement déployées est de ?","1,22 m","1,24 m","1,26 m",null,{"$f":"IF(G48=1,1,0)","v":0},{"$f":"H48","v":0}]
[{"$f":"RAND()","v":0.75818481469406784},46,"Je peux incorporer un dispositif flottant au bas de ligne.",true,false,null,null,{"$f":"IF(G49=2,1,0)","v":0},{"$f":"H49","v":0}]
[{"$f":"RAND()","v":7.1899071149567173E-2},49,"Pendant les manches, le contrôleur est autorisé à porter le panier repas et une bouteille d'eau.",true,false,null,null,{"$f":"IF(G50=1,1,0)","v":0},{"$f":"H50","v":0}]
[{"$f":"RAND()","v":0.36935299530005916},29,"Quel est le nombre maximum de mouches autorisées sur un bas de ligne ?",2,3,4,null,{"$f":"IF(G51=2,1,0)","v":0},{"$f":"H51","v":0}]
[]
[null,null,null,null,null,null,"Nombre de points",null,{"$f":"SUM(I2:I52)","v":0}]

{"sheet":"Questionnaire","index":2,"n_rows":23,"n_cols":41,"rows_kept":23,"cut":false,"hidden":false,"merged":[[0,6,1,6],[0,2,1,2]]}
[null,null,null,null,null,null,"Indiquer le n° de la réponse\n (1 - 2 ou 3)"]
[null,null,null,"Réponse 1","Réponse 2","Réponse 3"]
[null,17,"En bateau, la mise à l’épuisette du poisson doit être effectuée uniquement par le concurrent.",true,false,null,null,{"$f":"IF(G3=2,1,0)","v":0},{"$f":"H3","v":0},{"$f":"IF(G3=\"\",\"\",(IF(I3=1,\"Bravo !!\",\"Perdu\")))","v":""}]
[null,26,"Quel est le nombre maximum de nœuds autorisés sur un micro anneaux ?",2,3,null,null,{"$f":"IF(G4=2,1,0)","v":0},{"$f":"H4","v":0},{"$f":"IF(G4=\"\",\"\",(IF(I4=1,\"Bravo !!\",\"Perdu\")))","v":""}]
[null,3,"Le compétiteur peut toucher son poisson dans l'épuisette avant l'homologation.",true,false,null,null,{"$f":"IF(G5=2,1,0)","v":0},{"$f":"H5","v":0},""]
[null,10,"Pendant les inter-manches, je peux aider un compétiteur à déplacer son matériel. ",true,false,null,null,{"$f":"IF(G6=2,1,0)","v":0},{"$f":"H6","v":0},""]
[null,43,"En rivière, sous certaines conditions, les truites arc en ciel sont homologables.",true,false,null,null,{"$f":"IF(G7=1,1,0)","v":0},{"$f":"H7","v":0},""]
[null,31,"Dans certains cas, le commissaire peut, seul, interdire l'emploi de certains équipements et/ou mouches.",true,false,null,null,{"$f":"IF(G8=2,1,0)","v":0},{"$f":"H8","v":0},""]
[null,5,"En cas de pêche en barque dérivante, la zone de pêche de chaque concurrent est de ?","45 °","90 °","180 °",null,{"$f":"IF(G9=2,1,0)","v":0},{"$f":"H9","v":0},""]
[null,45,"La gabarit sert à mesurer uniquement la taille de la bille et la longueur maximale de l'hameçon.",true,false,null,null,{"$f":"IF(G10=2,1,0)","v":0},{"$f":"H10","v":0},""]
[null,8,"Le contrôleur peut contrôler un membre de son club.",true,false,null,null,{"$f":"IF(G11=2,1,0)","v":0},{"$f":"H11","v":0},""]
[null,36,"Le commissaire doit signaler un abandon de poste.",true,false,null,null,{"$f":"IF(G12=1,1,0)","v":0},{"$f":"H12","v":0},"",null,null,null,null,null,null,null,null,null,null,null,null,null,null,null,null,null,null,null,null,null,null,null,2]
[null,42,"En réservoir, l'entraînement des compétiteurs et contrôleurs de toutes divisions confondues, sur les secteurs de la compétition, est interdit 15 jours francs précédents la compétition.",true,false,null,null,{"$f":"IF(G13=2,1,0)","v":0},{"$f":"H13","v":0},"",null,null,null,null,null,null,null,null,null,null,null,null,null,null,null,null,null,null,null,null,null,null,null,null,null,null,null,null,null,null,9]
[null,35,"En réservoir, que ce soit du bord ou en barque fixe, la longueur totale des épuisettes entièrement déployées est limitée. ",true,false,null,null,{"$f":"IF(G14=2,1,0)","v":0},{"$f":"H14","v":0},""]
[null,50,"La remise à l'eau du poisson peut être effectuée indifféremment par le contrôleur ou le pêcheur.",true,false,null,null,{"$f":"IF(G15=2,1,0)","v":0},{"$f":"H15","v":0},""]
[null,33,"Toutes les papattes sont interdites.",true,false,null,null,{"$f":"IF(G16=1,1,0)","v":0},{"$f":"H16","v":0},""]
[null,38,"En compétition rivière, l’arbitre peut traverser le cours d’eau pour mesurer un poisson.",true,false,null,null,{"$f":"IF(G17=2,1,0)","v":0},{"$f":"H17","v":0},""]
[null,18,"Le concurrent signe en regard de chaque prise en fin de chaque session.",true,false,null,null,{"$f":"IF(G18=2,1,0)","v":0},{"$f":"H18","v":0},""]
[null,27,"Le lestage d'une mouche peut dépasser de la courbure.",true,false,null,null,{"$f":"IF(G19=2,1,0)","v":0},{"$f":"H19","v":0},""]
[null,7,"Quelle la longueur maximum d'une canne en compétition ?","10 pieds","11 pieds","12 pieds",null,{"$f":"IF(G20=3,1,0)","v":0},{"$f":"H20","v":0},""]
[null,9,"Pendant une manche, je ne peux pas aider un compétiteur à déplacer son matériel. ",true,false,null,2,{"$f":"IF(G21=1,1,0)","v":0},{"$f":"H21","v":0},{"$f":"IF(G21=\"\",\"\",(IF(I21=1,\"Bravo !!\",\"Perdu\")))","v":"Perdu"}]
[null,13,"Sur un bas de ligne à nœuds pendant librement, quelle est la distance minimale entre 2 nœuds ? ","30 cm","35 cm","40 cm",null,{"$f":"IF(G22=1,1,0)","v":0},{"$f":"H22","v":0},""]
[null,null,null,null,null,null,"Votre score :",null,null,{"$f":"SUM(I3:I22)","v":0}]

{"sheet":"Feuilles de marque","index":3,"n_rows":28,"n_cols":46,"rows_kept":28,"cut":false,"hidden":false,"merged":[[10,2,10,11],[26,35,26,43],[10,45,10,48],[10,15,10,23],[11,1,12,1],[13,1,14,1],[19,1,20,1],[21,1,22,1],[23,1,24,1],[10,28,10,30],[10,31,10,44],[15,1,16,1],[17,1,18,1],[11,27,12,27],[11,28,12,30],[11,45,12,48],[13,27,14,27],[13,28,14,30],[13,45,14,48],[15,27,16,27],[15,28,16,30],[15,41,16,44],[15,45,16,48],[17,27,18,27],[17,28,18,30],[17,41,18,44],[17,45,18,48],[26,6,26,14],[23,41,24,44],[23,45,24,48],[19,27,20,27],[19,28,20,30],[19,41,20,44],[19,45,20,48],[21,27,22,27],[21,28,22,30],[21,41,22,44],[21,45,22,48],[27,6,27,14],[26,15,26,23],[27,15,27,23],[23,27,24,27],[23,28,24,30]]}
[]
[]
[]
[]
[]
[null,null,null,null,null,null,null,null,null,null,null,null,null,"Feuille de marque réservoir",null,null,null,null,null,null,null,null,null,null,null,null,null,null,null,null,null,null,null,null,null,null,null,null,null,"Feuille de marque rivière"]
[]
[]
[]
[]
[null,null,"MANCHE 1",null,null,null,null,null,null,null,null,null,"T","Sign",null,"MANCHE 2",null,null,null,null,null,null,null,null,"T","Sign",null,null,"Heure de prise",null,null,"Taille de la prise en cms",null,null,null,null,null,null,null,null,null,null,null,null,null,"Signature du compétiteur"]
[null,1,null,null,2,3,4,5,6,7,8,9,null,null,null,null,2,3,4,5,6,7,8,9,null,null,null,1,null,null,null,null,1,2,3,4,5,6,7,8,9]
[null,null,0,1,2,3,4,5,6,7,8,9,null,null,0,1,2,3,4,5,6,7,8,9,null,null,null,null,null,null,null,0,1,2,3,4,5,6,7,8,9]
[null,2,null,null,2,3,4,5,6,7,8,9,null,null,null,null,2,3,4,5,6,7,8,9,null,null,null,2,null,null,null,null,1,2,3,4,5,6,7,8,9]
[null,null,0,1,2,3,4,5,6,7,8,9,null,null,0,1,2,3,4,5,6,7,8,9,null,null,null,null,null,null,null,0,1,2,3,4,5,6,7,8,9]
[null,3,null,null,2,3,4,5,6,7,8,9,null,null,null,null,2,3,4,5,6,7,8,9,null,null,null,3,null,null,null,null,1,2,3,4,5,6,7,8,9]
[null,null,0,1,2,3,4,5,6,7,8,9,null,null,0,1,2,3,4,5,6,7,8,9,null,null,null,null,null,null,null,0,1,2,3,4,5,6,7,8,9]
[null,4,null,null,2,3,4,5,6,7,8,9,null,null,null,null,2,3,4,5,6,7,8,9,null,null,null,4,null,null,null,null,1,2,3,4,5,6,7,8,9]
[null,null,0,1,2,3,4,5,6,7,8,9,null,null,0,1,2,3,4,5,6,7,8,9,null,null,null,null,null,null,null,0,1,2,3,4,5,6,7,8,9]
[null,5,null,null,2,3,4,5,6,7,8,9,null,null,null,null,2,3,4,5,6,7,8,9,null,null,null,5,null,null,null,null,1,2,3,4,5,6,7,8,9]
[null,null,0,1,2,3,4,5,6,7,8,9,null,null,0,1,2,3,4,5,6,7,8,9,null,null,null,null,null,null,null,0,1,2,3,4,5,6,7,8,9]
[null,6,null,null,2,3,4,5,6,7,8,9,null,null,null,null,2,3,4,5,6,7,8,9,null,null,null,6,null,null,null,null,1,2,3,4,5,6,7,8,9]
[null,null,0,1,2,3,4,5,6,7,8,9,null,null,0,1,2,3,4,5,6,7,8,9,null,null,null,null,null,null,null,0,1,2,3,4,5,6,7,8,9]
[null,7,null,null,2,3,4,5,6,7,8,9,null,null,null,null,2,3,4,5,6,7,8,9,null,null,null,7,null,null,null,null,1,2,3,4,5,6,7,8,9]
[null,null,0,1,2,3,4,5,6,7,8,9,null,null,0,1,2,3,4,5,6,7,8,9,null,null,null,null,null,null,null,0,1,2,3,4,5,6,7,8,9]
[]
[null,null,null,null,null,null,{"$f":"IF(AND(G12=\"X\",K13=\"X\"),\"BRAVO !!\",\"\")","v":""},null,null,null,null,null,null,null,null,null,null,null,null,null,null,null,null,null,null,null,null,null,null,null,null,null,null,null,null,{"$f":"IF(AND(AH12=\"X\",AO13=\"X\"),\"BRAVO !!\",\"\")","v":""}]
[null,null,null,null,null,null,{"$f":"IF(E13=\"X\",\"BRA\",\"\")","v":""},null,null,null,null,null,null,null,null,{"$f":"IF(L14=\"X\",\"VO!!\",\"\")","v":""}]